bitfinex/quotes_ETHUSD_20240907
["timestamp","ask_amount","ask_price","bid_price","bid_amount"]
[1725673609231,0.17835172,2233.5,2233.1,8.95589]
[1725673609441,4.47757,2233.4,2232.9,6.95684]
[1725673609610,4.47757,2233.4,2232.9,8.398524]
[1725673609930,4.47768,2233.3,2232.9,4.47834]
[1725673610304,0.17823504,2233.2,2232.9,4.47834]
[1725673610510,4.47768,2233.3,2232.9,4.47834]
[1725673610691,0.17823504,2233.2,2232.9,4.47834]
[1725673610892,4.47768,2233.3,2232.9,4.47834]
[1725673611117,0.17783309,2233.2,2232.9,4.47834]
[1725673611339,4.47768,2233.3,2232.9,4.47834]
[1725673611651,2.4689,2233.4,2232.9,8.95672]
[1725673611947,0.17762558,2233.3,2233.0,0.895672]
[1725673612315,0.17762558,2233.3,2233.0,5.373922]
[1725673612515,2.4689,2233.4,2233.0,5.373922]
[1725673612716,0.17762558,2233.3,2233.0,5.373922]
[1725673614445,0.17762558,2233.3,2233.1,3.55328336]
[1725673614763,4.47712,2233.6,2233.2,4.47787]
[1725673616557,6.94589,2233.7,2233.2,4.47777]
[1725673616912,0.17782012,2233.6,2233.2,4.47777]
[1725673617328,0.17782012,2233.6,2233.2,7.85186]
[1725673617862,0.17782012,2233.6,2233.2,5.37336]
[1725673618020,4.65491012,2233.6,2233.2,5.37336]
[1725673618360,7.12381012,2233.6,2233.2,5.37336]
[1725673618657,2.64672012,2233.6,2233.2,5.37336]
[1725673620034,4.47728,2233.5,2233.1,4.478]
[1725673620259,2.64672012,2233.6,2233.1,4.478]
[1725673620470,0.17785902,2233.4,2233.1,4.478]
[1725673620667,4.47761,2233.4,2232.9,4.47845]
[1725673620858,0.17785902,2233.3,2232.9,4.47845]
[1725673621162,4.47768,2233.3,2232.9,6.368004]
[1725673621656,0.17734039,2233.2,2232.9,6.368004]
[1725673622064,4.47768,2233.3,2232.9,6.368004]
[1725673622265,0.17734039,2233.1,2232.8,4.47859]
[1725673622516,4.65543039,2233.1,2232.6,8.95788]
[1725673622768,4.65543039,2233.1,2232.6,8.95789]
[1725673622921,9.13361039,2233.1,2232.6,4.4789]
[1725673623126,4.65543039,2233.1,2232.7,1.56048212]
[1725673623437,4.65543039,2233.1,2232.6,4.4789]
[1725673623641,4.65543039,2233.1,2232.7,1.5604759]
[1725673623966,4.65543039,2233.1,2232.6,8.95787]
[1725673624152,0.17734039,2233.1,2232.7,6.03926558]
[1725673624364,0.17734039,2233.1,2232.7,4.47879]
[1725673624727,4.47808,2233.1,2232.7,4.47879]
[1725673626173,6.94682,2233.2,2232.7,4.47877]
[1725673626399,4.47817,2233.1,2232.7,4.47877]
[1725673626609,4.65505644,2233.1,2232.6,5.42057111]
[1725673626824,4.65505644,2233.1,2232.7,1.56046599]
[1725673627097,4.65505644,2233.1,2232.6,4.47906]
[1725673627297,4.47817,2233.1,2232.6,4.47906]
[1725673627892,6.94682,2233.2,2232.7,4.47883]
[1725673628288,0.17688644,2233.1,2232.8,2.2838]
[1725673628462,8.95518,2233.4,2232.9,6.03877146]
[1725673628809,4.47759,2233.4,2232.9,4.47838]
[1725673628995,0.17688644,2233.3,2232.9,4.47838]
[1725673629161,4.65467644,2233.3,2232.9,0.85153774]
[1725673629367,4.65467644,2233.3,2232.8,6.76246]
[1725673629611,4.47788,2233.2,2232.8,4.47866]
[1725673629899,4.4783,2233.0,2232.6,3.22531111]
[1725673630209,0.17688644,2232.9,2232.5,5.42064111]
[1725673630503,0.17688644,2232.9,2232.4,0.94151111]
[1725673630504,4.47872,2232.8,2232.4,0.94151111]
[1725673630704,4.47872,2232.8,2232.5,1.56063865]
[1725673630909,0.17688644,2232.7,2232.3,17.36061111]
[1725673631104,4.47872,2232.8,2232.4,3.90157451]
[1725673631265,6.95444,2232.9,2232.5,1.5606298]
[1725673631463,6.95444,2232.9,2232.4,5.42096111]
[1725673631714,0.1761341,2232.8,2232.5,3.29664113]
[1725673632007,0.1761341,2232.8,2232.5,1.73605011]
[1725673632658,0.1761341,2232.8,2232.5,6.21532011]
[1725673633202,6.95444,2232.9,2232.5,6.21532011]
[1725673633759,6.95444,2232.9,2232.5,1.73605011]
[1725673633760,11.43304,2232.9,2232.5,1.73605011]
[1725673634005,6.95444,2232.9,2232.5,1.73605011]
[1725673635801,0.1761341,2232.8,2232.5,1.73605011]
[1725673636002,6.95444,2232.9,2232.5,6.21531011]
[1725673636301,6.95444,2232.9,2232.5,1.73605011]
[1725673637694,0.1761341,2232.8,2232.5,1.73605011]
[1725673637890,11.43302,2232.9,2232.5,1.73605011]
[1725673638070,6.95444,2232.9,2232.5,1.73605011]
[1725673638270,0.1761341,2232.8,2232.5,1.73605011]
[1725673639384,6.95444,2232.9,2232.5,1.73605011]
[1725673639894,6.95444,2232.9,2232.5,6.21528011]
[1725673641009,11.43302,2232.9,2232.5,1.73605011]
[1725673641217,0.1761341,2232.8,2232.6,1.56057532]
[1725673641414,11.43303,2232.9,2232.5,1.73605011]
[1725673641730,0.1761341,2232.7,2232.5,1.73605011]
[1725673642024,6.95444,2232.9,2232.6,0.72465119]
[1725673642188,0.17616003,2232.6,2232.4,9.98985179]
[1725673642388,2.4759,2232.9,2232.5,8.38073358]
[1725673642623,2.4759,2232.9,2232.6,1.56058143]
[1725673642802,2.4759,2232.9,2232.6,4.47906]
[1725673642998,4.47839,2233.0,2232.6,4.47906]
[1725673643217,4.47839,2233.0,2232.6,5.46904511]
[1725673644926,4.47839,2233.0,2232.6,0.98998511]
[1725673645236,4.47839,2233.0,2232.7,1.56055016]
[1725673645435,4.47864,2232.9,2232.5,0.94151111]
[1725673645637,4.47882,2232.8,2232.4,0.94151111]
[1725673645941,4.47882,2232.8,2232.5,3.90151845]
[1725673646231,4.47882,2232.8,2232.4,0.94151111]
[1725673646442,4.47882,2232.8,2232.5,3.90153823]
[1725673646590,4.47882,2232.8,2232.4,0.94151111]
[1725673646795,4.47882,2232.8,2232.5,3.90154223]
[1725673646994,4.47882,2232.8,2232.4,0.94151111]
[1725673647224,4.47882,2232.8,2232.5,3.90160428]
[1725673647432,4.47882,2232.8,2232.4,0.94151111]
[1725673647636,4.47882,2232.8,2232.5,1.56062705]
[1725673647930,4.47882,2232.8,2232.4,0.94151111]
[1725673648142,4.47893,2232.7,2232.5,3.90157581]
[1725673648294,4.47893,2232.7,2232.3,5.89172982]
[1725673648295,2.56521714,2232.7,2232.3,0.94151111]
[1725673648499,4.47968,2232.3,2232.0,8.40151111]
[1725673648746,4.47988,2232.2,2232.1,1.56094217]
[1725673648907,4.47988,2232.2,2231.8,23.19711111]
[1725673648908,4.64980279,2232.2,2231.8,23.19711111]
[1725673649110,4.64980279,2232.2,2231.9,3.90251595]
[1725673649309,4.47988,2232.2,2232.0,1.56100638]
[1725673649608,4.47969,2232.3,2231.8,27.67776111]
[1725673649798,4.47969,2232.3,2231.9,3.90251081]
[1725673649991,0.16989684,2232.2,2231.8,27.67776111]
[1725673650321,4.47969,2232.3,2231.9,3.90251302]
[1725673650526,4.47969,2232.3,2231.8,27.67776111]
[1725673650694,4.47969,2232.3,2231.9,3.9025094]
[1725673650695,0.16989684,2232.2,2231.9,3.9025094]
[1725673650898,6.92998,2231.8,2231.6,0.94151111]
[1725673651123,4.48108,2231.6,2231.3,0.94151111]
[1725673651308,4.48108,2231.6,2231.1,9.8156]
[1725673651522,4.65040065,2231.7,2231.1,6.83767]
[1725673651523,4.48101,2231.7,2231.1,6.83767]
[1725673651838,0.16936469,2231.6,2231.3,4.48167]
[1725673652047,4.4806,2231.9,2231.4,0.84748574]
[1725673652340,0.16722263,2231.5,2231.1,2.3556]
[1725673652567,4.48091,2231.7,2231.1,2.3556]
[1725673652724,0.16722263,2231.4,2231.1,2.3556]
[1725673652897,2.4493,2231.6,2230.9,27.67952111]
[1725673653099,2.4493,2231.6,2231.0,3.90382078]
[1725673653300,2.4493,2231.6,2230.9,27.67952111]
[1725673653502,2.4493,2231.6,2231.0,4.48213]
[1725673653810,4.48091,2231.7,2231.1,4.57167137]
[1725673654107,0.16697584,2231.5,2231.3,2.3556]
[1725673654313,6.92993,2231.9,2231.3,6.92677906]
[1725673654519,0.16697584,2231.4,2231.3,7.97803991]
[1725673655001,6.9299,2231.9,2231.3,8.06765928]
[1725673655326,6.9299,2231.9,2231.4,4.48146]
[1725673656104,11.41057,2231.9,2231.4,4.48146]
[1725673656340,11.41049,2231.9,2231.4,4.48146]
[1725673656544,6.92989,2231.9,2231.4,4.48146]
[1725673656744,11.4105,2231.9,2231.4,4.48146]
[1725673656928,6.92989,2231.9,2231.4,4.48146]
[1725673657114,6.92989,2231.9,2231.4,5.72744099]
[1725673658210,11.41049,2231.9,2231.4,5.72744099]
[1725673659719,4.48068,2231.8,2231.4,5.72744099]
[1725673660447,4.48059,2231.9,2231.4,5.72744099]
[1725673660600,4.48059,2231.9,2231.4,5.81705991]
[1725673660804,8.09400711,2232.2,2231.2,4.48176]
[1725673660805,4.48095,2231.7,2231.2,4.48176]
[1725673661309,6.93011,2231.8,2231.3,4.48162]
[1725673661310,8.96161,2231.8,2231.3,4.48162]
[1725673661514,8.96167,2231.8,2231.3,0.08962405]
[1725673661827,4.64812562,2231.7,2231.2,4.48176]
[1725673662048,0.16723562,2231.7,2231.4,2.3556]
[1725673662219,0.16723562,2231.7,2231.4,6.83699]
[1725673662418,4.48058,2231.9,2231.4,6.83699]
[1725673662623,4.48058,2231.9,2231.4,6.92660887]
[1725673662849,0.16720964,2231.8,2231.7,4.48088]
[1725673663020,4.47997,2232.2,2231.7,4.48088]
[1725673663225,4.47997,2232.2,2231.8,2.2562]
[1725673665455,4.47997,2232.2,2231.8,6.73686]
[1725673665761,4.47997,2232.2,2231.8,2.2562]
[1725673665970,8.95996,2232.2,2231.8,2.2562]
[1725673666175,8.95996,2232.2,2231.8,2.93886848]
[1725673666525,4.48012,2232.1,2231.8,2.93886848]
[1725673667022,8.96002,2232.2,2231.8,2.93886848]
[1725673667274,4.47997,2232.2,2231.8,2.93886848]
[1725673667938,8.95997,2232.2,2231.8,2.93886848]
[1725673668235,4.47997,2232.2,2231.9,0.71920124]
[1725673668656,8.95995,2232.2,2231.9,0.71920124]
[1725673669441,8.95995,2232.2,2231.8,2.2562]
[1725673669969,8.95995,2232.2,2231.8,2.34580478]
[1725673670126,8.95997,2232.2,2231.8,2.34580478]
[1725673670835,4.48012,2232.1,2231.8,2.2562]
[1725673671023,4.47997,2232.2,2231.8,2.34580484]
[1725673671225,4.47997,2232.2,2231.9,1.13073748]
[1725673672259,4.48017,2232.1,2231.8,2.2562]
[1725673672456,4.47997,2232.2,2231.8,2.34580478]
[1725673672905,4.47969,2232.3,2231.8,6.82648478]
[1725673673186,4.4793,2232.5,2232.1,2.2562]
[1725673673391,4.4793,2232.5,2232.2,0.673634]
[1725673673689,4.4793,2232.5,2232.1,2.2562]
[1725673674459,0.16819656,2232.4,2232.1,2.2562]
[1725673674977,9.12728656,2232.4,2232.1,2.2562]
[1725673675192,4.47988,2232.2,2231.8,2.2562]
[1725673675390,4.64843148,2232.1,2231.8,2.929892]
[1725673677948,4.48017,2232.1,2231.8,2.929892]
[1725673678148,0.16826148,2232.0,2231.8,2.929892]
[1725673680954,4.48017,2232.1,2231.8,2.929892]
[1725673682294,4.4799,2232.2,2231.8,2.929892]
[1725673682669,0.16815761,2232.1,2231.8,2.929892]
[1725673683059,0.16815761,2232.1,2231.8,7.410562]
[1725673683495,0.16815761,2232.1,2231.8,0.673692]
[1725673683701,4.64824761,2232.1,2231.7,4.48085]
[1725673683901,4.64824761,2232.1,2231.7,4.4808]
[1725673684410,4.48049,2231.9,2231.5,4.48112]
[1725673685261,0.1682485,2231.8,2231.5,4.48112]
[1725673687300,0.1682485,2231.8,2231.4,6.77778]
[1725673688786,0.1682485,2231.8,2231.5,4.70027187]
[1725673689002,0.1682485,2231.8,2231.5,4.48128]
[1725673690643,4.48057,2231.9,2231.4,7.71918111]
[1725673690927,2.4892,2232.0,2231.3,1.84361755]
[1725673690928,4.64886388,2231.7,2231.3,5.42314111]
[1725673691129,4.48094,2231.7,2231.4,1.5613788]
[1725673691301,4.48094,2231.7,2231.3,4.48163]
[1725673691501,0.16789791,2231.6,2231.4,1.5614198]
[1725673691698,4.48129,2231.5,2231.2,0.94151111]
[1725673691916,4.48129,2231.5,2231.0,15.65070982]
[1725673691917,4.64916194,2231.5,2231.1,0.94151111]
[1725673692122,4.64916194,2231.5,2231.2,1.56150609]
[1725673692286,4.64916194,2231.5,2231.1,4.48207]
[1725673692287,0.16787194,2231.5,2231.1,4.48207]
[1725673692489,6.96998,2231.8,2231.3,4.48168]
[1725673692811,6.96998,2231.8,2231.2,5.42330111]
[1725673692997,4.4811,2231.6,2231.3,1.56150669]
[1725673693203,8.9623,2231.6,2231.1,5.42352111]
[1725673693432,8.9623,2231.6,2231.2,4.84530986]
[1725673693603,2.4892,2231.5,2231.1,5.42352111]
[1725673693952,2.4892,2231.5,2231.2,3.90396015]
[1725673694145,2.4892,2231.5,2231.1,5.42352111]
[1725673694294,4.48149,2231.4,2231.2,3.9039262]
[1725673694496,4.48149,2231.4,2231.0,0.94151111]
[1725673694804,4.48149,2231.4,2231.1,4.84558786]
[1725673695023,4.48149,2231.4,2231.2,3.90406747]
[1725673695240,4.48149,2231.4,2231.1,0.94151111]
[1725673695412,4.48149,2231.4,2231.2,1.56162435]
[1725673695748,4.48149,2231.4,2231.0,0.94151111]
[1725673696044,4.48149,2231.4,2231.1,3.90408301]
[1725673696255,4.48149,2231.4,2231.2,1.5616332]
[1725673696545,4.48149,2231.4,2231.1,0.94151111]
[1725673696842,4.48149,2231.4,2231.2,1.56161479]
[1725673697053,4.48149,2231.4,2231.0,0.94151111]
[1725673697216,4.48149,2231.4,2231.1,3.90411511]
[1725673697420,4.48149,2231.4,2231.2,1.56167015]
[1725673697763,4.48149,2231.4,2231.0,0.94151111]
[1725673697966,4.48149,2231.4,2231.1,3.90412047]
[1725673698170,4.48149,2231.4,2231.0,0.94151111]
[1725673698335,4.48149,2231.4,2231.1,3.90418163]
[1725673698675,4.48149,2231.4,2231.2,1.56165038]
[1725673698868,4.48149,2231.4,2231.0,0.94151111]
[1725673699032,4.48149,2231.4,2231.1,3.90406468]
[1725673699232,4.48149,2231.4,2231.0,0.94151111]
[1725673699233,4.48149,2231.4,2231.2,1.56162587]
[1725673699433,4.48149,2231.4,2231.0,0.94151111]
[1725673699674,4.48149,2231.4,2231.1,3.90410441]
[1725673699959,4.48149,2231.4,2231.0,0.94151111]
[1725673700275,4.48149,2231.4,2231.1,3.90411703]
[1725673700577,4.48149,2231.4,2231.2,1.56164681]
[1725673700732,4.48149,2231.4,2231.0,0.94151111]
[1725673701075,4.48149,2231.4,2231.1,3.90411388]
[1725673701275,4.48149,2231.4,2231.2,1.56164555]
[1725673701428,4.48149,2231.4,2231.0,0.94151111]
[1725673701633,4.48149,2231.4,2231.1,3.90399922]
[1725673701972,4.48169,2231.3,2231.2,1.56159969]
[1725673702194,4.48169,2231.3,2231.0,0.94151111]
[1725673702470,4.48169,2231.3,2231.1,3.90405543]
[1725673702668,4.48169,2231.3,2231.0,0.94151111]
[1725673702973,8.96317,2231.4,2231.1,3.90402178]
[1725673703177,8.96317,2231.4,2231.2,1.56160871]
[1725673703475,4.48149,2231.4,2231.0,0.94151111]
[1725673703659,4.48149,2231.4,2231.1,3.90399365]
[1725673703860,4.48126,2231.6,2231.1,3.39311446]
[1725673704058,4.48126,2231.6,2231.2,3.99350643]
[1725673704262,8.96244,2231.6,2231.1,4.42425349]
[1725673704453,8.96236,2231.6,2231.2,3.90384778]
[1725673704649,4.48129,2231.5,2231.1,8.81659557]
[1725673704949,4.64764231,2231.5,2231.2,3.90385787]
[1725673705134,4.48118,2231.6,2231.1,13.29858557]
[1725673705335,0.16641729,2231.4,2231.2,3.90385923]
[1725673705548,8.96236,2231.6,2231.1,8.81659557]
[1725673705758,0.16641729,2231.3,2231.2,3.90385678]
[1725673706076,0.16641729,2231.3,2231.2,1.56154271]
[1725673706275,8.96236,2231.6,2231.2,1.56154271]
[1725673706481,0.16641729,2231.3,2231.1,8.81659557]
[1725673706639,8.96236,2231.6,2231.2,2.58441775]
[1725673706840,8.96236,2231.6,2231.1,7.74258111]
[1725673707040,0.16641729,2231.5,2231.2,1.56153996]
[1725673707288,8.96236,2231.6,2231.1,7.74258111]
[1725673707483,0.16641729,2231.4,2231.2,1.56153319]
[1725673707808,0.16641729,2231.3,2231.1,4.48197]
[1725673708013,4.4816,2231.4,2231.1,1.51566974]
[1725673708166,4.6481743,2231.3,2231.0,0.94151111]
[1725673708365,4.6481743,2231.3,2231.1,3.90401878]
[1725673708676,4.6481743,2231.3,2230.9,5.42399111]
[1725673709006,4.6481743,2231.3,2231.0,3.90409053]
[1725673709169,4.6481743,2231.3,2231.1,1.56163621]
[1725673709372,4.6481743,2231.3,2230.9,5.42399111]
[1725673709700,4.6481743,2231.3,2231.0,3.90416442]
[1725673710015,0.1664043,2231.3,2231.1,3.88075137]
[1725673710171,0.1664043,2231.3,2231.1,2.3191]
[1725673712706,0.1664043,2231.3,2231.2,4.48189]
[1725673712933,0.1664043,2231.3,2231.2,1.56157461]
[1725673713112,4.48121,2231.6,2231.2,6.0434416]
[1725673713314,0.16626139,2231.3,2231.2,5.95908795]
[1725673713626,0.16626139,2231.3,2231.2,7.43101145]
[1725673713828,4.48121,2231.6,2231.2,7.43101145]
[1725673714010,0.16626139,2231.5,2231.2,5.8694573]
[1725673714910,0.16626139,2231.5,2231.3,4.48165]
[1725673715115,0.16626139,2231.5,2231.3,5.72639697]
[1725673715339,8.96153,2231.8,2231.3,5.72639697]
[1725673715536,0.16626139,2231.4,2231.3,4.48165]
[1725673715744,4.48089,2231.7,2231.3,4.48165]
[1725673716224,0.16626139,2231.6,2231.3,4.48165]
[1725673716428,0.16626139,2231.6,2231.4,6.80056]
[1725673716599,9.42986501,2232.0,2231.5,4.48129]
[1725673716801,4.64708317,2231.9,2231.4,6.80056]
[1725673717038,4.64708317,2231.9,2231.5,3.90323339]
[1725673717039,4.48078,2231.8,2231.5,3.90323339]
[1725673717203,4.48078,2231.8,2231.3,5.89386982]
[1725673717204,0.16675503,2231.7,2231.3,5.42314111]
[1725673717402,2.3752,2231.8,2231.4,1.56137541]
[1725673717601,0.16675503,2231.7,2231.3,4.48163]
[1725673717800,2.3752,2231.8,2231.4,1.56139532]
[1725673718046,4.64764503,2231.7,2231.3,5.42314111]
[1725673718319,4.64764503,2231.7,2231.2,7.74233111]
[1725673718520,4.64764503,2231.7,2231.3,5.56502934]
[1725673718743,4.64764503,2231.7,2231.4,1.5614289]
[1725673718927,0.16675503,2231.7,2231.3,6.14310709]
[1725673719139,0.16675503,2231.7,2231.4,1.5613854]
[1725673719350,2.3752,2231.8,2231.3,7.0846182]
[1725673719645,2.3752,2231.8,2231.4,4.78471555]
[1725673719798,0.16671606,2231.7,2231.3,5.42316111]
[1725673720001,6.85589,2231.8,2231.4,3.90346028]
[1725673720321,0.16674204,2231.7,2231.3,5.42316111]
[1725673720521,0.16674204,2231.7,2231.4,3.90346516]
[1725673720744,6.85589,2231.8,2231.3,5.42316111]
[1725673720950,0.16674204,2231.6,2231.4,3.90344322]
[1725673721152,6.85589,2231.8,2231.3,5.42316111]
[1725673721153,4.4809,2231.7,2231.3,0.94151111]
[1725673721461,4.4809,2231.7,2231.4,3.9035558]
[1725673721761,0.16674204,2231.6,2231.2,0.94151111]
[1725673721963,0.16674204,2231.6,2231.3,3.90366172]
[1725673722125,0.16674204,2231.6,2231.4,1.56146469]
[1725673722327,0.16674204,2231.6,2231.3,0.94151111]
[1725673722527,0.16674204,2231.6,2231.4,3.9036345]
[1725673722864,4.64784204,2231.6,2231.2,0.94151111]
[1725673723065,4.64784204,2231.6,2231.3,3.90365978]
[1725673723369,4.64784204,2231.6,2231.4,1.56146391]
[1725673723523,4.64784204,2231.6,2231.3,0.94151111]
[1725673723724,4.64784204,2231.6,2231.4,1.56145663]
[1725673723983,4.64784204,2231.6,2231.2,0.94151111]
[1725673724178,4.64784204,2231.6,2231.3,4.84513687]
[1725673724336,4.64784204,2231.6,2231.4,3.90362374]
[1725673724540,4.64784204,2231.6,2231.2,0.94151111]
[1725673724874,4.64784204,2231.6,2231.3,3.9038602]
[1725673725078,4.64784204,2231.6,2231.2,0.94151111]
[1725673725232,4.64784204,2231.6,2231.3,3.90386793]
[1725673725436,4.64784204,2231.6,2231.4,1.5615246]
[1725673725637,4.64784204,2231.6,2231.2,0.94151111]
[1725673725836,4.64784204,2231.6,2231.3,3.90385781]
[1725673726080,4.64784204,2231.6,2231.2,0.94151111]
[1725673726278,4.64784204,2231.6,2231.3,3.90379183]
[1725673726484,4.64784204,2231.6,2231.4,1.56151673]
[1725673726690,4.64784204,2231.6,2231.2,0.94151111]
[1725673726846,4.64784204,2231.6,2231.3,3.90387917]
[1725673727047,4.64784204,2231.6,2231.2,0.94151111]
[1725673727267,4.64784204,2231.6,2231.3,3.90388612]
[1725673727466,4.48131,2231.5,2231.2,0.94151111]
[1725673727741,7.09315719,2231.5,2231.3,3.9038879]
[1725673727979,6.92661,2231.5,2231.4,1.56155516]
[1725673728641,6.92661,2231.5,2231.4,3.90385525]
[1725673729437,6.92661,2231.5,2231.4,1.56155516]
[1725673729772,6.92661,2231.5,2231.4,3.90388438]
[1725673729952,6.92661,2231.5,2231.4,1.56155516]
[1725673730158,6.92661,2231.5,2231.2,0.94151111]
[1725673730346,6.92661,2231.5,2231.3,3.9038626]
[1725673730546,6.92661,2231.5,2231.4,1.56154504]
[1725673731968,6.92661,2231.5,2231.2,0.94151111]
[1725673732291,6.92661,2231.5,2231.3,3.90403923]
[1725673732445,6.92661,2231.5,2231.2,0.94151111]
[1725673732649,6.92661,2231.5,2231.3,3.90400215]
[1725673732860,6.92661,2231.5,2231.4,1.56160169]
[1725673733062,6.92661,2231.5,2231.2,0.94151111]
[1725673733296,6.92661,2231.5,2231.3,3.90403831]
[1725673733460,6.92661,2231.5,2231.4,1.56161532]
[1725673735380,6.92661,2231.5,2231.4,1.56158624]
[1725673735554,6.92661,2231.5,2231.4,3.90396529]
[1725673736087,4.48131,2231.5,2231.4,3.90396529]
[1725673736603,4.48131,2231.5,2231.4,4.8454764]
[1725673736889,4.6477273,2231.5,2231.4,4.8454764]
[1725673737453,0.1664173,2231.5,2231.4,4.8454764]
[1725673739910,0.1664173,2231.5,2231.4,21.20609359]
[1725673740114,4.94931501,2232.0,2231.5,4.48114]
[1725673740311,4.94931501,2232.0,2231.7,0.94282825]
[1725673740312,4.48049,2231.9,2231.7,0.94282825]
[1725673740614,4.64179179,2231.9,2231.8,1.56127395]
[1725673741365,4.48076,2231.8,2231.6,0.94282825]
[1725673741602,4.48076,2231.8,2231.7,3.90337235]
[1725673743848,4.48076,2231.8,2231.6,0.94282825]
[1725673744054,4.48076,2231.8,2231.7,3.90322678]
[1725673744707,4.48051,2231.9,2231.7,3.90322678]
[1725673744939,4.48051,2231.9,2231.6,0.94282825]
[1725673744940,4.48051,2231.9,2231.8,1.56129071]
[1725673745108,4.48011,2232.1,2231.8,6.35601953]
[1725673745342,4.48011,2232.1,2231.9,1.56129071]
[1725673745517,4.48028,2232.0,2231.7,0.94282825]
[1725673745711,4.48028,2232.0,2231.8,3.9029881]
[1725673746039,4.48028,2232.0,2231.9,1.56119524]
[1725673746347,4.48028,2232.0,2231.7,0.94282825]
[1725673746559,8.96096,2231.9,2231.8,1.56119501]
[1725673746774,8.96096,2231.9,2231.5,1.41424237]
[1725673746775,4.48088,2231.8,2231.5,0.94282825]
[1725673746958,4.48088,2231.8,2231.6,3.90341308]
[1725673747164,4.48108,2231.6,2231.5,0.94282825]
[1725673747473,4.64286236,2231.6,2231.5,1.56142498]
[1725673748750,4.64286236,2231.6,2231.3,0.94282825]
[1725673748956,4.64286236,2231.6,2231.4,3.90375271]
[1725673749150,4.64286236,2231.6,2231.3,0.94282825]
[1725673749350,4.64286236,2231.6,2231.4,3.90387171]
[1725673749556,4.48129,2231.5,2231.3,0.94282825]
[1725673749753,4.48129,2231.5,2231.4,3.90378903]
[1725673750042,4.64307236,2231.5,2231.4,3.90378903]
[1725673753287,4.64307236,2231.5,2231.4,3.90387278]
[1725673753489,4.64307236,2231.5,2231.4,1.56151561]
[1725673753851,4.64307236,2231.5,2231.4,1.56159192]
[1725673754215,4.64307236,2231.5,2231.4,3.90397629]
[1725673755281,4.64307236,2231.5,2231.4,1.56159192]
[1725673755480,4.64307236,2231.5,2231.4,1.56164012]
[1725673755649,4.64307236,2231.5,2231.4,3.90406508]
[1725673756059,4.48169,2231.3,2231.2,0.94282825]
[1725673756261,4.48169,2231.3,2231.2,3.90428715]
[1725673756262,15.90028086,2231.3,2231.2,3.90428715]
[1725673756491,4.48249,2230.9,2230.8,8.40282825]
[1725673756794,4.48249,2230.9,2230.8,3.90474098]
[1725673756989,0.16119786,2230.9,2230.8,7.92665039]
[1725673757191,0.16119786,2230.9,2230.8,6.98382214]
[1725673757524,0.16119786,2230.9,2230.8,7.92630998]
[1725673757795,4.48169,2231.3,2230.9,2.4529]
[1725673757978,4.48169,2231.3,2231.0,4.84714875]
[1725673758293,4.48169,2231.3,2231.1,3.90474098]
[1725673758464,4.48169,2231.3,2231.0,2.85891022]
[1725673758667,4.48159,2231.4,2231.2,2.4529]
[1725673759767,4.48139,2231.5,2231.2,2.4529]
[1725673760092,4.48124,2231.6,2231.3,1.56158607]
[1725673760299,8.96247,2231.6,2231.2,2.4529]
[1725673760510,8.96247,2231.6,2231.3,1.56153429]
[1725673760790,4.48123,2231.6,2231.2,3.07908116]
[1725673760962,4.48123,2231.6,2231.3,1.56158836]
[1725673761168,8.96242,2231.6,2231.2,3.07908116]
[1725673761370,8.96242,2231.6,2231.3,1.56159191]
[1725673761567,4.48129,2231.5,2231.2,3.07908116]
[1725673761899,4.48129,2231.5,2231.3,2.41194507]
[1725673762203,4.48129,2231.5,2231.3,0.85035689]
[1725673762493,4.48129,2231.5,2231.2,3.07908116]
[1725673763076,4.48129,2231.5,2231.3,1.56160211]
[1725673763275,4.48129,2231.5,2231.2,3.07908116]
[1725673763650,4.48129,2231.5,2231.3,1.5616184]
[1725673763854,4.48129,2231.5,2231.2,3.07908116]
[1725673764064,4.48129,2231.5,2231.3,1.56158966]
[1725673764384,0.16071715,2231.4,2231.2,3.07908116]
[1725673764698,4.48129,2231.5,2231.2,3.07908116]
[1725673764997,0.16071715,2231.3,2231.2,3.07908116]
[1725673765184,4.48119,2231.6,2231.2,7.92541811]
[1725673765419,4.48119,2231.6,2231.3,1.56157167]
[1725673765583,0.16071715,2231.5,2231.2,4.02148893]
[1725673765773,4.64200715,2231.5,2231.3,3.90385551]
[1725673765960,4.64200715,2231.5,2231.2,4.02148893]
[1725673766155,4.64200715,2231.5,2231.3,3.90385095]
[1725673766367,4.64200715,2231.5,2231.2,4.02148893]
[1725673766572,4.64200715,2231.5,2231.3,3.9038489]
[1725673766855,4.64200715,2231.5,2231.2,4.02148893]
[1725673767196,4.64200715,2231.5,2231.3,3.90384478]
[1725673767401,4.64200715,2231.5,2231.2,4.02148893]
[1725673767614,4.64200715,2231.5,2231.3,3.90384768]
[1725673767764,4.64200715,2231.5,2231.2,4.02148893]
[1725673767961,4.64200715,2231.5,2231.3,3.90384791]
[1725673768159,4.64200715,2231.5,2231.2,4.02148893]
[1725673768503,4.64200715,2231.5,2231.3,3.90384923]
[1725673768702,4.64200715,2231.5,2231.2,4.02148893]
[1725673768908,4.64200715,2231.5,2231.3,3.90384923]
[1725673769061,4.64200715,2231.5,2231.2,4.02148893]
[1725673769266,4.64200715,2231.5,2231.3,3.9038495]
[1725673769461,4.64200715,2231.5,2231.2,4.02148893]
[1725673769696,4.64200715,2231.5,2231.3,3.90384815]
[1725673769864,4.64200715,2231.5,2231.2,2.4529]
[1725673770064,4.64200715,2231.5,2231.3,1.56159512]
[1725673770301,4.64200715,2231.5,2231.2,2.4529]
[1725673770499,4.64200715,2231.5,2231.3,1.56160357]
[1725673770759,4.64200715,2231.5,2231.2,2.4529]
[1725673770965,4.64200715,2231.5,2231.3,1.56160622]
[1725673771164,4.64200715,2231.5,2231.2,2.4529]
[1725673771827,4.64200715,2231.5,2231.3,1.56158508]
[1725673772111,4.64200715,2231.5,2231.2,2.4529]
[1725673772112,9.12346715,2231.5,2231.2,2.4529]
[1725673772278,9.12342715,2231.5,2231.1,0.94240777]
[1725673772491,4.64200715,2231.5,2231.2,1.56166638]
[1725673772696,4.64200715,2231.5,2231.1,5.51411796]
[1725673772939,4.64200715,2231.5,2231.2,3.90416973]
[1725673773105,4.64200715,2231.5,2231.1,5.42448777]
[1725673773267,4.64200715,2231.5,2231.2,3.90399536]
[1725673773600,4.64200715,2231.5,2231.1,5.42448777]
[1725673773768,4.64200715,2231.5,2231.2,3.90410328]
[1725673773963,4.64200715,2231.5,2231.3,1.56158891]
[1725673774163,4.64200715,2231.5,2231.1,5.42448777]